[Event "*** Titled Tuesday Blitz"]
[Site "Chess.com"]
[Date "2020.10.20"]
[Round "7"]
[White "Mikhail_Golubev"]
[Black "RobertoJBM"]
[Result "1-0"]
[WhiteElo "2544"]
[BlackElo "2676"]
[TimeControl "180+1"]
[EndTime "11:19:01 PDT"]
[Termination "Mikhail_Golubev won by resignation"]

1. e4 {[%clk 0:03:00.9]} 1... c6 {[%clk 0:03:00]} 2. d4 {[%clk 0:03:00.1]} 2...
d5 {[%clk 0:03:00.9]} 3. Nc3 {[%clk 0:02:59.6]} 3... dxe4 {[%clk 0:02:58]} 4.
Nxe4 {[%clk 0:03:00.5]} 4... Nd7 {[%clk 0:02:57.7]} 5. Ng5 {[%clk 0:02:58.6]}
5... Ngf6 {[%clk 0:02:57.4]} 6. Bd3 {[%clk 0:02:58.3]} 6... e6 {[%clk
0:02:57.2]} 7. N1f3 {[%clk 0:02:58.4]} 7... Bd6 {[%clk 0:02:56.8]} 8. Qe2 {[%clk
0:02:58.3]} 8... h6 {[%clk 0:02:57]} 9. Ne4 {[%clk 0:02:58.3]} 9... Nxe4 {[%clk
0:02:57.1]} 10. Qxe4 {[%clk 0:02:58.3]} 10... Qc7 {[%clk 0:02:57.2]} 11. a4
{[%clk 0:02:55.1]} 11... c5 {[%clk 0:02:52.1]} 12. O-O {[%clk 0:02:26.4]} 12...
c4 {[%clk 0:02:47.7]} 13. Be2 {[%clk 0:02:25.2]} 13... Nf6 {[%clk 0:02:47.9]}
14. Qh4 {[%clk 0:02:18.6]} 14... b6 {[%clk 0:02:48.1]} 15. Ne5 {[%clk
0:02:07.5]} 15... Bxe5 {[%clk 0:02:45.6]} 16. dxe5 {[%clk 0:02:06.4]} 16... Nd7
{[%clk 0:02:34.9]} 17. Bxc4 {[%clk 0:01:59.4]} 17... Nxe5 {[%clk 0:02:33.3]} 18.
Bb5+ {[%clk 0:01:53.6]} 18... Bd7 {[%clk 0:02:33.1]} 19. Qg3 {[%clk 0:01:45.8]}
19... Bxb5 {[%clk 0:02:30.9]} 20. axb5 {[%clk 0:01:45]} 20... Qc5 {[%clk
0:01:07.6]} 21. Be3 {[%clk 0:00:46.1]} 21... Qxb5 {[%clk 0:01:01.4]} 22. Qxg7
{[%clk 0:00:43.4]} 22... Ng6 {[%clk 0:00:51.7]} 23. Rfd1 {[%clk 0:00:28.3]}
23... h5 {[%clk 0:00:34.2]} 24. Qf6 {[%clk 0:00:23.1]} 24... Rg8 {[%clk
0:00:31]} 25. Rxa7 {[%clk 0:00:20.6]} 1-0

[Event "*** Titled Tuesday Blitz"]
[Site "Chess.com"]
[Date "2020.10.20"]
[Round "7"]
[White "talman67"]
[Black "tdf98pantani"]
[Result "0-1"]
[WhiteElo "2526"]
[BlackElo "2719"]
[TimeControl "180+1"]
[EndTime "11:19:02 PDT"]
[Termination "tdf98pantani won by resignation"]

1. e4 {[%clk 0:03:00.9]} 1... e5 {[%clk 0:02:58.7]} 2. Nf3 {[%clk 0:03:00.7]}
2... Nc6 {[%clk 0:02:58.9]} 3. Bb5 {[%clk 0:03:00.3]} 3... a6 {[%clk 0:02:59.2]}
4. Ba4 {[%clk 0:03:00.4]} 4... Nf6 {[%clk 0:02:59.4]} 5. O-O {[%clk 0:03:00.3]}
5... Be7 {[%clk 0:02:59.3]} 6. Re1 {[%clk 0:02:59.8]} 6... b5 {[%clk 0:02:59.6]}
7. Bb3 {[%clk 0:03:00.5]} 7... d6 {[%clk 0:02:59.9]} 8. c3 {[%clk 0:03:00.8]}
8... O-O {[%clk 0:03:00]} 9. h3 {[%clk 0:03:01.4]} 9... Re8 {[%clk 0:02:59.1]}
10. d4 {[%clk 0:02:55.4]} 10... Bb7 {[%clk 0:02:58.4]} 11. Nbd2 {[%clk
0:02:52.9]} 11... Bf8 {[%clk 0:02:57.5]} 12. a4 {[%clk 0:02:51.8]} 12... h6
{[%clk 0:02:57]} 13. Bc2 {[%clk 0:02:50.3]} 13... exd4 {[%clk 0:02:57.1]} 14.
cxd4 {[%clk 0:02:51.2]} 14... Nb4 {[%clk 0:02:57.5]} 15. Bb1 {[%clk 0:02:51.7]}
15... c5 {[%clk 0:02:57.8]} 16. d5 {[%clk 0:02:51.4]} 16... Nd7 {[%clk
0:02:57.8]} 17. Ra3 {[%clk 0:02:51.9]} 17... c4 {[%clk 0:02:57.7]} 18. axb5
{[%clk 0:02:44.3]} 18... axb5 {[%clk 0:02:56.9]} 19. Nd4 {[%clk 0:02:44.2]}
19... Nc5 {[%clk 0:02:39.9]} 20. Nxb5 {[%clk 0:02:29.6]} 20... Ncd3 {[%clk
0:02:34.2]} 21. Nxc4 {[%clk 0:02:21.6]} 21... Nxe1 {[%clk 0:02:31.6]} 22. Qxe1
{[%clk 0:02:22.5]} 22... Nxd5 {[%clk 0:02:16.9]} 23. Rg3 {[%clk 0:02:15]} 23...
Ra1 {[%clk 0:02:05.5]} 24. Bxh6 {[%clk 0:01:55.1]} 24... Nf6 {[%clk 0:01:54.9]}
25. e5 {[%clk 0:01:22.8]} 25... Ne4 {[%clk 0:01:48.8]} 26. Rg4 {[%clk
0:01:09.1]} 26... d5 {[%clk 0:01:38.6]} 27. Ncd6 {[%clk 0:01:07]} 27... Nxd6
{[%clk 0:01:17.9]} 28. Nxd6 {[%clk 0:00:57.8]} 28... Qxd6 {[%clk 0:01:16]} 29.
Bxg7 {[%clk 0:00:50.4]} 29... Bxg7 {[%clk 0:01:10.1]} 30. Bh7+ {[%clk
0:00:49.6]} 30... Kxh7 {[%clk 0:01:07.5]} 31. Qxa1 {[%clk 0:00:50.5]} 31... Qxe5
{[%clk 0:01:05.6]} 32. Qa7 {[%clk 0:00:43.1]} 32... Re7 {[%clk 0:00:58.8]} 33.
Qb6 {[%clk 0:00:41.6]} 33... Qe1+ {[%clk 0:00:50.3]} 34. Kh2 {[%clk 0:00:41.5]}
34... d4 {[%clk 0:00:43.3]} 35. Rh4+ {[%clk 0:00:38.7]} 35... Kg8 {[%clk
0:00:42.1]} 36. Qd8+ {[%clk 0:00:38.6]} 36... Re8 {[%clk 0:00:42.4]} 37. Qg5
{[%clk 0:00:38.5]} 37... Qe5+ {[%clk 0:00:42.1]} 0-1

[Event "*** Titled Tuesday Blitz"]
[Site "Chess.com"]
[Date "2020.10.20"]
[Round "7"]
[White "AlexeiShirov"]
[Black "Gusarov91"]
[Result "0-1"]
[WhiteElo "2802"]
[BlackElo "2608"]
[TimeControl "180+1"]
[EndTime "11:19:03 PDT"]
[Termination "Gusarov91 won by resignation"]

1. e4 {[%clk 0:03:00.9]} 1... e5 {[%clk 0:02:57.2]} 2. Nf3 {[%clk 0:03:00]} 2...
Nf6 {[%clk 0:02:57.3]} 3. Nc3 {[%clk 0:02:57.5]} 3... Bb4 {[%clk 0:02:56.4]} 4.
Nxe5 {[%clk 0:02:56.5]} 4... O-O {[%clk 0:02:55.4]} 5. Nd3 {[%clk 0:02:55.6]}
5... Bxc3 {[%clk 0:02:55.3]} 6. dxc3 {[%clk 0:02:54.6]} 6... Nxe4 {[%clk
0:02:55.9]} 7. Nf4 {[%clk 0:02:54.4]} 7... Re8 {[%clk 0:02:54.1]} 8. Be2 {[%clk
0:02:54]} 8... c6 {[%clk 0:02:54.4]} 9. O-O {[%clk 0:02:48.2]} 9... d5 {[%clk
0:02:54.5]} 10. c4 {[%clk 0:02:47.6]} 10... d4 {[%clk 0:02:37.5]} 11. f3 {[%clk
0:02:46.2]} 11... Nf6 {[%clk 0:02:30.3]} 12. b3 {[%clk 0:02:36.8]} 12... c5
{[%clk 0:02:26.8]} 13. g4 {[%clk 0:02:16.6]} 13... h6 {[%clk 0:02:20.3]} 14. h4
{[%clk 0:02:14.1]} 14... Nh7 {[%clk 0:02:14.7]} 15. Qe1 {[%clk 0:02:12.4]} 15...
d3 {[%clk 0:02:05.5]} 16. Nxd3 {[%clk 0:02:01.7]} 16... Qd4+ {[%clk 0:02:05]}
17. Kg2 {[%clk 0:01:38.6]} 17... Qxa1 {[%clk 0:02:04]} 18. Qd2 {[%clk
0:01:38.6]} 18... Qf6 {[%clk 0:01:59.2]} 19. Bb2 {[%clk 0:01:37.1]} 19... Qxh4
{[%clk 0:01:56.6]} 20. Rh1 {[%clk 0:01:34.1]} 20... Qg5 {[%clk 0:01:56.3]} 21.
f4 {[%clk 0:01:33.1]} 21... Bxg4 {[%clk 0:01:49.4]} 22. fxg5 {[%clk 0:01:28.3]}
22... Rxe2+ {[%clk 0:01:49.4]} 23. Qxe2 {[%clk 0:01:27.6]} 23... Bxe2 {[%clk
0:01:49.5]} 24. Nf4 {[%clk 0:01:27.7]} 24... Bg4 {[%clk 0:01:46]} 25. gxh6
{[%clk 0:01:28.1]} 25... gxh6 {[%clk 0:01:37.5]} 26. Rxh6 {[%clk 0:01:26.3]}
26... Nc6 {[%clk 0:01:37.3]} 27. Nd5 {[%clk 0:01:26]} 27... Nd4 {[%clk
0:01:29.9]} 28. Rd6 {[%clk 0:01:16.8]} 28... Bf3+ {[%clk 0:01:29.5]} 29. Kf2
{[%clk 0:01:15.2]} 29... Bxd5 {[%clk 0:01:29.6]} 30. Rxd5 {[%clk 0:01:14.2]}
30... Nf6 {[%clk 0:01:26.3]} 31. Rg5+ {[%clk 0:01:09.9]} 31... Kf8 {[%clk
0:01:24.4]} 32. Ke3 {[%clk 0:01:08.6]} 32... Re8+ {[%clk 0:01:23.5]} 33. Kd3
{[%clk 0:01:08.4]} 33... b6 {[%clk 0:01:21.3]} 34. Bxd4 {[%clk 0:01:06.7]} 34...
cxd4 {[%clk 0:01:16.9]} 35. a4 {[%clk 0:01:06.6]} 35... Rd8 {[%clk 0:01:14.4]}
36. a5 {[%clk 0:01:05.9]} 36... Rd6 {[%clk 0:01:13.3]} 37. b4 {[%clk 0:01:03.7]}
37... Nd7 {[%clk 0:01:11.9]} 38. c5 {[%clk 0:01:01.1]} 38... bxc5 {[%clk
0:01:09.4]} 39. bxc5 {[%clk 0:01:00.6]} 39... Ra6 {[%clk 0:01:09.2]} 40. Rd5
{[%clk 0:01:00]} 40... Ke7 {[%clk 0:01:07.6]} 41. Kxd4 {[%clk 0:00:55.2]} 41...
Rxa5 {[%clk 0:01:07.3]} 42. c4 {[%clk 0:00:55.1]} 42... Ra6 {[%clk 0:00:55.8]}
43. Rh5 {[%clk 0:00:53.3]} 43... Rc6 {[%clk 0:00:54.9]} 44. Rf5 {[%clk
0:00:52.5]} 44... a5 {[%clk 0:00:54.6]} 45. Rh5 {[%clk 0:00:49.8]} 45... a4
{[%clk 0:00:54.4]} 46. Rf5 {[%clk 0:00:48.6]} 46... Rxc5 {[%clk 0:00:52]} 0-1

[Event "*** Titled Tuesday Blitz"]
[Site "Chess.com"]
[Date "2020.10.20"]
[Round "7"]
[White "Sueetin"]
[Black "julinha97"]
[Result "1-0"]
[WhiteElo "2360"]
[BlackElo "2233"]
[TimeControl "180+1"]
[EndTime "11:19:09 PDT"]
[Termination "Sueetin won by resignation"]

1. d4 {[%clk 0:03:00.9]} 1... Nf6 {[%clk 0:02:59.8]} 2. c4 {[%clk 0:03:01.1]}
2... g6 {[%clk 0:03:00.3]} 3. Nc3 {[%clk 0:03:01.4]} 3... d5 {[%clk 0:03:00.9]}
4. cxd5 {[%clk 0:03:01.2]} 4... Nxd5 {[%clk 0:03:01.8]} 5. e4 {[%clk 0:03:01.8]}
5... Nxc3 {[%clk 0:03:02.5]} 6. bxc3 {[%clk 0:03:02.7]} 6... c5 {[%clk
0:03:03.4]} 7. Bb5+ {[%clk 0:03:02.4]} 7... Nd7 {[%clk 0:02:44.5]} 8. Nf3 {[%clk
0:03:01.5]} 8... Bg7 {[%clk 0:02:40.2]} 9. Rb1 {[%clk 0:02:59.8]} 9... O-O
{[%clk 0:02:39.3]} 10. d5 {[%clk 0:02:53.7]} 10... Bxc3+ {[%clk 0:02:35.5]} 11.
Bd2 {[%clk 0:02:52.8]} 11... Bg7 {[%clk 0:02:33.3]} 12. O-O {[%clk 0:02:43.9]}
12... a6 {[%clk 0:02:33.6]} 13. Bxd7 {[%clk 0:02:38.4]} 13... Qxd7 {[%clk
0:02:34.5]} 14. Rc1 {[%clk 0:02:26.7]} 14... b6 {[%clk 0:02:13.4]} 15. Bc3
{[%clk 0:02:26.3]} 15... Bb7 {[%clk 0:02:07.1]} 16. Qd2 {[%clk 0:02:04]} 16...
f5 {[%clk 0:01:59.1]} 17. Bxg7 {[%clk 0:02:01.2]} 17... Kxg7 {[%clk 0:01:58.3]}
18. Ng5 {[%clk 0:01:58.5]} 18... Rf6 {[%clk 0:01:38.1]} 19. e5 {[%clk
0:01:48.5]} 19... Rff8 {[%clk 0:01:30.5]} 20. Ne6+ {[%clk 0:01:43.4]} 20... Kg8
{[%clk 0:01:31.1]} 21. Nxf8 {[%clk 0:01:23.4]} 21... Rxf8 {[%clk 0:01:28.6]} 22.
d6 {[%clk 0:01:18.4]} 22... Rd8 {[%clk 0:01:26]} 23. Rcd1 {[%clk 0:01:05]} 23...
Qc6 {[%clk 0:01:25.2]} 24. f3 {[%clk 0:01:04.6]} 24... e6 {[%clk 0:01:25.5]} 25.
d7 {[%clk 0:00:56.2]} 25... Kf7 {[%clk 0:01:18.5]} 26. Qg5 {[%clk 0:00:49.7]}
26... Rxd7 {[%clk 0:01:15.4]} 27. Qf6+ {[%clk 0:00:45]} 27... Kg8 {[%clk
0:01:11.2]} 28. h4 {[%clk 0:00:40.2]} 28... Rd5 {[%clk 0:01:06.2]} 29. h5 {[%clk
0:00:34.2]} 29... Qe8 {[%clk 0:01:06.4]} 30. h6 {[%clk 0:00:29]} 30... Qd7
{[%clk 0:01:02.1]} 31. Rxd5 {[%clk 0:00:23.3]} 31... Bxd5 {[%clk 0:01:03]} 32.
Rd1 {[%clk 0:00:18]} 32... c4 {[%clk 0:00:54]} 33. Rxd5 {[%clk 0:00:17]} 33...
exd5 {[%clk 0:00:53.8]} 34. e6 {[%clk 0:00:17]} 34... Qc7 {[%clk 0:00:50.1]} 35.
e7 {[%clk 0:00:16.5]} 35... Qc5+ {[%clk 0:00:50.6]} 36. Kh1 {[%clk 0:00:16.6]}
1-0

[Event "*** Titled Tuesday Blitz"]
[Site "Chess.com"]
[Date "2020.10.20"]
[Round "7"]
[White "Tooweak2slow03"]
[Black "Kurai"]
[Result "1-0"]
[WhiteElo "2776"]
[BlackElo "2586"]
[TimeControl "180+1"]
[EndTime "11:19:10 PDT"]
[Termination "Tooweak2slow03 won by checkmate"]

1. e4 {[%clk 0:03:00.9]} 1... e5 {[%clk 0:02:59.9]} 2. Nf3 {[%clk 0:02:58.4]}
2... Nc6 {[%clk 0:03:00.1]} 3. Nc3 {[%clk 0:02:53.1]} 3... Nf6 {[%clk
0:02:59.1]} 4. a3 {[%clk 0:02:53.3]} 4... Be7 {[%clk 0:02:57.4]} 5. d4 {[%clk
0:02:53.3]} 5... d6 {[%clk 0:02:54.1]} 6. Bb5 {[%clk 0:02:51.2]} 6... exd4
{[%clk 0:02:50.1]} 7. Nxd4 {[%clk 0:02:50.7]} 7... Bd7 {[%clk 0:02:50.6]} 8. O-O
{[%clk 0:02:50.8]} 8... Nxd4 {[%clk 0:02:45.2]} 9. Bxd7+ {[%clk 0:02:49.9]} 9...
Nxd7 {[%clk 0:02:40.3]} 10. Qxd4 {[%clk 0:02:50.1]} 10... Bf6 {[%clk 0:02:39.5]}
11. Qe3 {[%clk 0:02:50.3]} 11... Bxc3 {[%clk 0:02:32.8]} 12. Qxc3 {[%clk
0:02:49.6]} 12... O-O {[%clk 0:02:33.4]} 13. Be3 {[%clk 0:02:47.4]} 13... Re8
{[%clk 0:02:33.4]} 14. f3 {[%clk 0:02:47.3]} 14... Nf8 {[%clk 0:02:18.4]} 15.
Rad1 {[%clk 0:02:46.6]} 15... Ne6 {[%clk 0:02:18.4]} 16. Rd5 {[%clk 0:02:42.9]}
16... Qd7 {[%clk 0:02:09.2]} 17. Rfd1 {[%clk 0:02:42.3]} 17... Qc6 {[%clk
0:02:09.1]} 18. Qd2 {[%clk 0:02:37.7]} 18... Re7 {[%clk 0:01:49.6]} 19. c3
{[%clk 0:02:37.4]} 19... Rae8 {[%clk 0:01:48.7]} 20. Qf2 {[%clk 0:02:37]} 20...
b6 {[%clk 0:01:47.9]} 21. Qg3 {[%clk 0:02:31.7]} 21... a5 {[%clk 0:01:39.9]} 22.
h4 {[%clk 0:02:31.3]} 22... Qa4 {[%clk 0:01:28.9]} 23. h5 {[%clk 0:02:26.9]}
23... Qc2 {[%clk 0:01:22.5]} 24. R1d2 {[%clk 0:02:20.9]} 24... Qc1+ {[%clk
0:01:19.1]} 25. Kh2 {[%clk 0:02:20.9]} 25... Qf1 {[%clk 0:01:13.5]} 26. h6
{[%clk 0:02:11.1]} 26... g6 {[%clk 0:01:13]} 27. Qh4 {[%clk 0:01:32.8]} 27... f6
{[%clk 0:00:45.4]} 28. Qxf6 {[%clk 0:01:31.8]} 28... Rf7 {[%clk 0:00:46]} 29.
Qh4 {[%clk 0:01:29.3]} 29... Ref8 {[%clk 0:00:43.8]} 30. Qg3 {[%clk 0:01:27.3]}
30... a4 {[%clk 0:00:28.6]} 31. e5 {[%clk 0:01:25]} 31... c6 {[%clk 0:00:16.5]}
32. Rxd6 {[%clk 0:01:24.5]} 32... Rf5 {[%clk 0:00:17.1]} 33. Qg4 {[%clk
0:01:17]} 33... Rh5+ {[%clk 0:00:12.7]} 34. Kg3 {[%clk 0:01:14.9]} 34... Qe1+
{[%clk 0:00:12.6]} 35. Rf2 {[%clk 0:01:12.8]} 35... Nc5 {[%clk 0:00:05.2]} 36.
Rxg6+ {[%clk 0:01:08.7]} 36... Kh8 {[%clk 0:00:04.4]} 37. Qd4 {[%clk 0:01:06.1]}
37... hxg6 {[%clk 0:00:02.4]} 38. e6+ {[%clk 0:01:04.2]} 38... Kh7 {[%clk
0:00:02.3]} 39. Qg7# {[%clk 0:01:03.9]} 1-0

[Event "*** Titled Tuesday Blitz"]
[Site "Chess.com"]
[Date "2020.10.20"]
[Round "7"]
[White "Caterpiller35"]
[Black "Stalri"]
[Result "0-1"]
[WhiteElo "2421"]
[BlackElo "2194"]
[TimeControl "180+1"]
[EndTime "11:19:15 PDT"]
[Termination "Stalri won on time"]

1. d4 {[%clk 0:03:00.9]} 1... g6 {[%clk 0:02:59.4]} 2. e4 {[%clk 0:03:00.8]}
2... Bg7 {[%clk 0:02:59.5]} 3. Nc3 {[%clk 0:03:00.9]} 3... c6 {[%clk 0:02:59.1]}
4. h4 {[%clk 0:03:00.1]} 4... d5 {[%clk 0:02:57.7]} 5. h5 {[%clk 0:02:59.8]}
5... dxe4 {[%clk 0:02:57.2]} 6. Nxe4 {[%clk 0:02:59.7]} 6... Bf5 {[%clk
0:02:57]} 7. Ng3 {[%clk 0:02:57]} 7... Qxd4 {[%clk 0:02:53.4]} 8. Qxd4 {[%clk
0:02:54.2]} 8... Bxd4 {[%clk 0:02:54.3]} 9. Nxf5 {[%clk 0:02:52.9]} 9... gxf5
{[%clk 0:02:55.2]} 10. Nf3 {[%clk 0:02:50.7]} 10... Bf6 {[%clk 0:02:48]} 11. Bd3
{[%clk 0:02:47.7]} 11... e6 {[%clk 0:02:47.4]} 12. c3 {[%clk 0:02:47.2]} 12...
Ne7 {[%clk 0:02:46.6]} 13. Be3 {[%clk 0:02:19.6]} 13... Nd7 {[%clk 0:02:45.1]}
14. O-O-O {[%clk 0:02:19.4]} 14... O-O-O {[%clk 0:02:38.1]} 15. a4 {[%clk
0:01:59.4]} 15... Nd5 {[%clk 0:02:31.4]} 16. Bxa7 {[%clk 0:01:57.6]} 16... b6
{[%clk 0:02:27]} 17. a5 {[%clk 0:01:43.3]} 17... bxa5 {[%clk 0:02:26.3]} 18. Bd4
{[%clk 0:01:03.1]} 18... e5 {[%clk 0:02:10.8]} 19. Bxf5 {[%clk 0:00:54.4]} 19...
exd4 {[%clk 0:02:08.6]} 20. Nxd4 {[%clk 0:00:55.3]} 20... Kc7 {[%clk 0:02:05]}
21. g3 {[%clk 0:00:49.4]} 21... Nc5 {[%clk 0:02:01.4]} 22. Kc2 {[%clk
0:00:47.4]} 22... Rhe8 {[%clk 0:01:50.3]} 23. Bxh7 {[%clk 0:00:45.2]} 23... Bxd4
{[%clk 0:01:44.3]} 24. Rxd4 {[%clk 0:00:44.8]} 24... Re2+ {[%clk 0:01:43.9]} 25.
Kb1 {[%clk 0:00:37.7]} 25... Rb8 {[%clk 0:01:38.1]} 26. Bc2 {[%clk 0:00:16.5]}
26... Nxc3+ {[%clk 0:01:27.5]} 27. Kc1 {[%clk 0:00:14.9]} 27... Na2+ {[%clk
0:01:13.7]} 28. Kd1 {[%clk 0:00:11]} 28... Rxf2 {[%clk 0:01:13.1]} 29. h6 {[%clk
0:00:08.8]} 29... Nb4 {[%clk 0:01:10.1]} 30. Bb1 {[%clk 0:00:03.4]} 30... Rxb2
{[%clk 0:01:03.2]} 31. Kc1 {[%clk 0:00:03.6]} 31... Nbd3+ {[%clk 0:00:52.6]} 32.
Bxd3 {[%clk 0:00:03.6]} 32... Nxd3+ {[%clk 0:00:52.7]} 33. Rxd3 {[%clk
0:00:02.8]} 33... Rb1+ {[%clk 0:00:53.1]} 0-1

[Event "*** Titled Tuesday Blitz"]
[Site "Chess.com"]
[Date "2020.10.20"]
[Round "7"]
[White "VMikhalevski"]
[Black "GM_Levan_Pantsulaia"]
[Result "0-1"]
[WhiteElo "2711"]
[BlackElo "2863"]
[TimeControl "180+1"]
[EndTime "11:19:17 PDT"]
[Termination "GM_Levan_Pantsulaia won by resignation"]

1. d4 {[%clk 0:03:00.9]} 1... Nf6 {[%clk 0:02:59.5]} 2. Nf3 {[%clk 0:03:01.3]}
2... c5 {[%clk 0:02:59.3]} 3. d5 {[%clk 0:03:00.8]} 3... g6 {[%clk 0:02:59]} 4.
c4 {[%clk 0:03:00.1]} 4... e6 {[%clk 0:02:57.8]} 5. Nc3 {[%clk 0:02:59.6]} 5...
exd5 {[%clk 0:02:57.9]} 6. cxd5 {[%clk 0:03:00.2]} 6... d6 {[%clk 0:02:58.3]} 7.
Bf4 {[%clk 0:02:59.2]} 7... Bg7 {[%clk 0:02:44.7]} 8. e3 {[%clk 0:02:58.3]} 8...
O-O {[%clk 0:02:42.2]} 9. h3 {[%clk 0:02:58.5]} 9... Na6 {[%clk 0:02:35.3]} 10.
Be2 {[%clk 0:02:53.5]} 10... Nc7 {[%clk 0:02:30.5]} 11. a4 {[%clk 0:02:53]}
11... a6 {[%clk 0:02:21.6]} 12. a5 {[%clk 0:02:51.5]} 12... Rb8 {[%clk
0:02:18.8]} 13. O-O {[%clk 0:02:44.2]} 13... b5 {[%clk 0:02:18.3]} 14. axb6
{[%clk 0:02:43.7]} 14... Rxb6 {[%clk 0:02:17.7]} 15. Ra2 {[%clk 0:02:41.9]}
15... Nfxd5 {[%clk 0:02:15.1]} 16. Nxd5 {[%clk 0:02:39.2]} 16... Nxd5 {[%clk
0:02:16]} 17. Bg5 {[%clk 0:02:27.7]} 17... Qc7 {[%clk 0:02:15.7]} 18. Nd2 {[%clk
0:02:16.2]} 18... Nb4 {[%clk 0:02:10.9]} 19. Ra5 {[%clk 0:02:12.7]} 19... d5
{[%clk 0:02:07.9]} 20. Bf4 {[%clk 0:02:07.1]} 20... Qe7 {[%clk 0:02:07.6]} 21.
b3 {[%clk 0:02:02.6]} 21... Be6 {[%clk 0:02:01]} 22. e4 {[%clk 0:01:55.5]} 22...
dxe4 {[%clk 0:01:56.1]} 23. Nxe4 {[%clk 0:01:49.6]} 23... Bd4 {[%clk 0:01:55.6]}
24. Bg5 {[%clk 0:01:42.7]} 24... f6 {[%clk 0:01:53.5]} 25. Bh6 {[%clk
0:01:39.9]} 25... Rd8 {[%clk 0:01:52.1]} 26. Qc1 {[%clk 0:01:37.9]} 26... Bd5
{[%clk 0:01:49]} 27. Ng3 {[%clk 0:01:30.1]} 27... Bxb3 {[%clk 0:01:42.2]} 28.
Re1 {[%clk 0:01:27.7]} 28... Qc7 {[%clk 0:01:21.2]} 29. Bf4 {[%clk 0:01:20]}
29... Qb7 {[%clk 0:01:12.7]} 30. Bc4+ {[%clk 0:01:18.1]} 30... Bxc4 {[%clk
0:01:12.8]} 31. Qxc4+ {[%clk 0:01:18]} 31... Qd5 {[%clk 0:01:13.2]} 32. Qe2
{[%clk 0:01:14.7]} 32... Nd3 {[%clk 0:00:56.5]} 33. Bc7 {[%clk 0:00:53.2]} 33...
Bxf2+ {[%clk 0:00:52.3]} 34. Kh2 {[%clk 0:00:50.9]} 34... Bxe1 {[%clk
0:00:39.1]} 35. Ne4 {[%clk 0:00:38.3]} 35... Bxa5 {[%clk 0:00:30.2]} 36. Bxb6
{[%clk 0:00:38.1]} 36... Qe5+ {[%clk 0:00:28.6]} 37. g3 {[%clk 0:00:36.9]} 37...
Bxb6 {[%clk 0:00:27.9]} 38. Qf3 {[%clk 0:00:37.6]} 38... Kg7 {[%clk 0:00:26.6]}
0-1

[Event "*** Titled Tuesday Blitz"]
[Site "Chess.com"]
[Date "2020.10.20"]
[Round "7"]
[White "Natalya_Buksa"]
[Black "FredyMatsuura"]
[Result "1-0"]
[WhiteElo "2562"]
[BlackElo "2391"]
[TimeControl "180+1"]
[EndTime "11:19:18 PDT"]
[Termination "Natalya_Buksa won on time"]

1. d4 {[%clk 0:03:00.9]} 1... Nf6 {[%clk 0:02:58.9]} 2. Nc3 {[%clk 0:03:01.4]}
2... d5 {[%clk 0:02:58]} 3. Bf4 {[%clk 0:03:01.9]} 3... c6 {[%clk 0:02:51.8]} 4.
e3 {[%clk 0:03:01.8]} 4... Bf5 {[%clk 0:02:51.3]} 5. Nf3 {[%clk 0:03:02.2]} 5...
h6 {[%clk 0:02:50.3]} 6. Ne5 {[%clk 0:03:02.4]} 6... Nbd7 {[%clk 0:02:49.3]} 7.
g4 {[%clk 0:03:02.9]} 7... Bh7 {[%clk 0:02:45.3]} 8. h4 {[%clk 0:03:03]} 8...
Nxe5 {[%clk 0:02:37.5]} 9. dxe5 {[%clk 0:03:03.2]} 9... Nd7 {[%clk 0:02:37.1]}
10. Qd2 {[%clk 0:03:02.8]} 10... e6 {[%clk 0:02:29.3]} 11. O-O-O {[%clk
0:03:01.9]} 11... Qa5 {[%clk 0:02:22]} 12. a3 {[%clk 0:03:00.8]} 12... O-O-O
{[%clk 0:02:17.4]} 13. Bd3 {[%clk 0:03:00.3]} 13... Bxd3 {[%clk 0:02:15.2]} 14.
Qxd3 {[%clk 0:03:01.2]} 14... Nc5 {[%clk 0:02:12.1]} 15. Qd4 {[%clk 0:03:00.4]}
15... Qb6 {[%clk 0:02:07]} 16. e4 {[%clk 0:02:50.3]} 16... dxe4 {[%clk
0:01:52.5]} 17. Qxd8+ {[%clk 0:02:44.6]} 17... Qxd8 {[%clk 0:01:52.4]} 18. Rxd8+
{[%clk 0:02:45.5]} 18... Kxd8 {[%clk 0:01:52.8]} 19. Rd1+ {[%clk 0:02:46]} 19...
Kc7 {[%clk 0:01:49.6]} 20. b4 {[%clk 0:02:46.4]} 20... Nd7 {[%clk 0:01:49.1]}
21. Nxe4 {[%clk 0:02:46.5]} 21... Nb6 {[%clk 0:01:38]} 22. Kb2 {[%clk
0:02:31.2]} 22... Be7 {[%clk 0:01:36.2]} 23. h5 {[%clk 0:02:30.4]} 23... Rd8
{[%clk 0:01:35.4]} 24. Rxd8 {[%clk 0:02:29.2]} 24... Kxd8 {[%clk 0:01:32.6]} 25.
Kb3 {[%clk 0:02:25.8]} 25... Kc7 {[%clk 0:01:28.3]} 26. c4 {[%clk 0:02:26]}
26... Nd7 {[%clk 0:01:13.1]} 27. Kc3 {[%clk 0:02:20.5]} 27... Nb6 {[%clk
0:01:11.3]} 28. Be3 {[%clk 0:02:12.9]} 28... Bf8 {[%clk 0:00:53]} 29. g5 {[%clk
0:02:11.2]} 29... Nd7 {[%clk 0:00:47]} 30. gxh6 {[%clk 0:02:10.4]} 30... gxh6
{[%clk 0:00:46.3]} 31. f4 {[%clk 0:02:10.9]} 31... Be7 {[%clk 0:00:41.1]} 32.
Nf2 {[%clk 0:02:00.9]} 32... f5 {[%clk 0:00:34.2]} 33. Nd1 {[%clk 0:01:43.7]}
33... b6 {[%clk 0:00:31.9]} 34. Kb3 {[%clk 0:01:43]} 34... Bh4 {[%clk
0:00:30.2]} 35. Nc3 {[%clk 0:01:43.1]} 35... Nb8 {[%clk 0:00:21.7]} 36. Ne2
{[%clk 0:01:42.2]} 36... Nd7 {[%clk 0:00:20.5]} 37. Nd4 {[%clk 0:01:42.6]} 37...
Nf8 {[%clk 0:00:20.9]} 38. a4 {[%clk 0:01:39.3]} 38... Be1 {[%clk 0:00:20.1]}
39. Nf3 {[%clk 0:01:36.2]} 39... Bg3 {[%clk 0:00:19.2]} 40. a5 {[%clk
0:01:33.7]} 40... bxa5 {[%clk 0:00:18.2]} 41. bxa5 {[%clk 0:01:32.6]} 41... a6
{[%clk 0:00:18.5]} 42. Kb4 {[%clk 0:01:27.9]} 42... Nd7 {[%clk 0:00:16.9]} 43.
Kc3 {[%clk 0:01:16.6]} 43... Nf8 {[%clk 0:00:14.3]} 44. Kd3 {[%clk 0:01:16.7]}
44... Nd7 {[%clk 0:00:12.5]} 45. Ke2 {[%clk 0:01:17]} 45... c5 {[%clk
0:00:11.6]} 46. Kf1 {[%clk 0:01:17.1]} 1-0